[Event "Late-Titled-Tuesday-Blitz-May-14-2024"]
[Site "Chess.com"]
[Date "2024.05.14"]
[Round "6"]
[White "Michalczak"]
[Black "Bryanl106"]
[Result "1-0"]
[WhiteElo "2511"]
[BlackElo "2667"]
[TimeControl "180+1"]
[EndTime "15:06:50 PDT"]
[Termination "Michalczak won by resignation"]

1. e4 {[%clk 0:03:00.9]} 1... c5 {[%clk 0:02:57.8]} 2. c3 {[%clk 0:03:00.3]}
2... d5 {[%clk 0:02:57.8]} 3. exd5 {[%clk 0:03:00.3]} 3... Qxd5 {[%clk
0:02:58.7]} 4. Nf3 {[%clk 0:03:00.3]} 4... Nf6 {[%clk 0:02:58.7]} 5. Na3 {[%clk
0:03:00.4]} 5... g6 {[%clk 0:02:58.4]} 6. Bc4 {[%clk 0:03:00.1]} 6... Qe4+
{[%clk 0:02:58.2]} 7. Be2 {[%clk 0:02:59.6]} 7... Bg7 {[%clk 0:02:58.1]} 8. O-O
{[%clk 0:02:59.4]} 8... O-O {[%clk 0:02:57.9]} 9. Re1 {[%clk 0:02:59.4]} 9...
Qd5 {[%clk 0:02:57.3]} 10. Bc4 {[%clk 0:02:59.1]} 10... Qd8 {[%clk 0:02:57.5]}
11. d4 {[%clk 0:02:57]} 11... cxd4 {[%clk 0:02:57]} 12. Nxd4 {[%clk 0:02:57.2]}
12... a6 {[%clk 0:02:55]} 13. Nac2 {[%clk 0:02:56.3]} 13... b5 {[%clk
0:02:55.1]} 14. Bb3 {[%clk 0:02:56.1]} 14... Bb7 {[%clk 0:02:55.5]} 15. Bg5
{[%clk 0:02:54.8]} 15... Nbd7 {[%clk 0:02:53.9]} 16. Ne3 {[%clk 0:02:37.7]}
16... Nc5 {[%clk 0:02:49.1]} 17. Bc2 {[%clk 0:02:34.4]} 17... Re8 {[%clk
0:02:45.1]} 18. Qe2 {[%clk 0:02:31.6]} 18... Nce4 {[%clk 0:02:44.8]} 19. Bh4
{[%clk 0:02:29.7]} 19... Qb6 {[%clk 0:02:42.5]} 20. Rad1 {[%clk 0:02:28.1]}
20... e6 {[%clk 0:02:41.6]} 21. Ng4 {[%clk 0:02:16]} 21... Nxg4 {[%clk
0:02:36.6]} 22. Qxg4 {[%clk 0:02:16.9]} 22... Nd6 {[%clk 0:02:34.3]} 23. Nf3
{[%clk 0:02:07.5]} 23... Nf5 {[%clk 0:02:20.1]} 24. Bg5 {[%clk 0:02:03.4]} 24...
h6 {[%clk 0:02:19.4]} 25. Bf4 {[%clk 0:02:01.1]} 25... Rad8 {[%clk 0:02:19.4]}
26. Ne5 {[%clk 0:01:58.6]} 26... Qc5 {[%clk 0:02:06.9]} 27. Nxg6 {[%clk
0:01:57.6]} 27... fxg6 {[%clk 0:02:05.2]} 28. Qxg6 {[%clk 0:01:58.5]} 28... Qc6
{[%clk 0:01:56.6]} 29. Rxd8 {[%clk 0:01:50.2]} 29... Rxd8 {[%clk 0:01:56.5]} 30.
Rxe6 {[%clk 0:01:47.8]} 30... Qd5 {[%clk 0:01:22.2]} 31. Re8+ {[%clk 0:01:26.6]}
31... Rxe8 {[%clk 0:01:18.5]} 32. Qxe8+ {[%clk 0:01:27.5]} 32... Kh7 {[%clk
0:01:17.7]} 33. f3 {[%clk 0:01:10]} 33... Bc6 {[%clk 0:00:47.6]} 34. Qh5 {[%clk
0:01:04.9]} 34... Bd7 {[%clk 0:00:47.8]} 35. g4 {[%clk 0:01:03.7]} 35... Qxf3
{[%clk 0:00:38]} 36. Bxf5+ {[%clk 0:01:02.1]} 36... Kh8 {[%clk 0:00:13.1]} 37.
Bxh6 {[%clk 0:00:55.8]} 37... Bxf5 {[%clk 0:00:13.1]} 38. Bxg7+ {[%clk
0:00:51.9]} 38... Kxg7 {[%clk 0:00:14]} 39. Qxf5 {[%clk 0:00:51.3]} 39... Qd1+
{[%clk 0:00:14.1]} 40. Kg2 {[%clk 0:00:51.5]} 40... Qe2+ {[%clk 0:00:14.7]} 41.
Kg3 {[%clk 0:00:50.9]} 41... Qxb2 {[%clk 0:00:14.9]} 42. Qe5+ {[%clk 0:00:50.5]}
42... Kh7 {[%clk 0:00:15.1]} 43. Qc7+ {[%clk 0:00:48]} 43... Kh8 {[%clk
0:00:15.2]} 44. Qc8+ {[%clk 0:00:47.8]} 44... Kh7 {[%clk 0:00:15.7]} 45. h4
{[%clk 0:00:44]} 45... Qc1 {[%clk 0:00:09.6]} 46. Qb7+ {[%clk 0:00:39.7]} 46...
Kh8 {[%clk 0:00:09.5]} 47. Qc8+ {[%clk 0:00:37.2]} 47... Kh7 {[%clk 0:00:09.7]}
48. Qf5+ {[%clk 0:00:37.6]} 48... Kh8 {[%clk 0:00:10.2]} 49. Qf8+ {[%clk
0:00:36.6]} 49... Kh7 {[%clk 0:00:09.6]} 50. Qf7+ {[%clk 0:00:37]} 50... Kh8
{[%clk 0:00:09]} 51. Qf3 {[%clk 0:00:35.3]} 51... Qg1+ {[%clk 0:00:08.4]} 52.
Kf4 {[%clk 0:00:35.9]} 52... Qc1+ {[%clk 0:00:08.2]} 53. Kf5 {[%clk 0:00:35.4]}
53... Qb1+ {[%clk 0:00:08.7]} 54. Qe4 {[%clk 0:00:34.4]} 54... Qxa2 {[%clk
0:00:06.8]} 55. Qe5+ {[%clk 0:00:34]} 55... Kh7 {[%clk 0:00:06.1]} 56. Qe7+
{[%clk 0:00:33.4]} 56... Kh8 {[%clk 0:00:06.7]} 57. Kg6 {[%clk 0:00:31.5]} 57...
Qg8+ {[%clk 0:00:02.4]} 58. Kh6 {[%clk 0:00:31.6]} 58... Qxg4 {[%clk 0:00:01.5]}
59. Qf8+ {[%clk 0:00:29.5]} 59... Qg8 {[%clk 0:00:02.1]} 60. Qf6+ {[%clk
0:00:30]} 1-0

[Event "Late-Titled-Tuesday-Blitz-May-14-2024"]
[Site "Chess.com"]
[Date "2024.05.14"]
[Round "6"]
[White "Oleksandr_Bortnyk"]
[Black "kingofthenil"]
[Result "1-0"]
[WhiteElo "3057"]
[BlackElo "2867"]
[TimeControl "180+1"]
[EndTime "15:06:52 PDT"]
[Termination "Oleksandr_Bortnyk won by resignation"]

1. e4 {[%clk 0:02:49.9]} 1... e6 {[%clk 0:02:59.5]} 2. Nf3 {[%clk 0:02:48.6]}
2... d5 {[%clk 0:02:59.2]} 3. e5 {[%clk 0:02:47.7]} 3... c5 {[%clk 0:02:59.6]}
4. d4 {[%clk 0:02:48.6]} 4... Nc6 {[%clk 0:02:51.7]} 5. Bd3 {[%clk 0:02:49.3]}
5... cxd4 {[%clk 0:02:46.9]} 6. O-O {[%clk 0:02:49.4]} 6... f6 {[%clk
0:02:26.8]} 7. Bf4 {[%clk 0:02:49]} 7... Nge7 {[%clk 0:02:16.6]} 8. Re1 {[%clk
0:02:45.3]} 8... Ng6 {[%clk 0:02:15.9]} 9. Bg3 {[%clk 0:02:44.1]} 9... Be7
{[%clk 0:02:06.6]} 10. Nbd2 {[%clk 0:02:27.2]} 10... O-O {[%clk 0:01:53.4]} 11.
Bxg6 {[%clk 0:02:27.4]} 11... hxg6 {[%clk 0:01:53.2]} 12. Nb3 {[%clk 0:02:28.3]}
12... f5 {[%clk 0:01:37]} 13. h3 {[%clk 0:02:28.2]} 13... Qb6 {[%clk 0:01:30.6]}
14. Rb1 {[%clk 0:02:26.9]} 14... Bd7 {[%clk 0:01:27.7]} 15. Bf4 {[%clk
0:02:27.3]} 15... Rfc8 {[%clk 0:01:18.9]} 16. Bg5 {[%clk 0:02:24.7]} 16... Bb4
{[%clk 0:01:12.7]} 17. Re2 {[%clk 0:02:23.7]} 17... a5 {[%clk 0:00:58.9]} 18.
Nbxd4 {[%clk 0:02:21.5]} 18... Bc5 {[%clk 0:00:49]} 19. Nxc6 {[%clk 0:02:20.1]}
19... Rxc6 {[%clk 0:00:44.5]} 20. Be3 {[%clk 0:02:13.5]} 20... Rac8 {[%clk
0:00:42.9]} 21. c3 {[%clk 0:02:12.8]} 21... Bxe3 {[%clk 0:00:41.6]} 22. Rxe3
{[%clk 0:02:13.7]} 22... Rc4 {[%clk 0:00:42]} 23. Nd4 {[%clk 0:02:09.5]} 23...
Qd8 {[%clk 0:00:42.6]} 24. Rg3 {[%clk 0:02:07.7]} 24... Kf7 {[%clk 0:00:34.6]}
25. Qd2 {[%clk 0:02:04.7]} 25... Qh4 {[%clk 0:00:34.8]} 26. Rd1 {[%clk
0:01:58.5]} 26... Qh6 {[%clk 0:00:27.8]} 27. Qe2 {[%clk 0:01:55.7]} 27... b5
{[%clk 0:00:27.8]} 28. Nf3 {[%clk 0:01:36.8]} 28... b4 {[%clk 0:00:25.5]} 29.
Ng5+ {[%clk 0:01:36.4]} 29... Kg8 {[%clk 0:00:25.8]} 30. cxb4 {[%clk 0:01:22.5]}
30... axb4 {[%clk 0:00:26.7]} 31. b3 {[%clk 0:01:23]} 31... Rc2 {[%clk
0:00:11.3]} 32. Qa6 {[%clk 0:01:21.7]} 32... Qh4 {[%clk 0:00:11.7]} 33. Qa7
{[%clk 0:01:10.6]} 33... R2c7 {[%clk 0:00:09.3]} 34. Qb6 {[%clk 0:01:09]} 34...
Rc6 {[%clk 0:00:02.7]} 35. Qa7 {[%clk 0:00:54]} 35... R8c7 {[%clk 0:00:03.2]}
36. Qd4 {[%clk 0:00:54.8]} 36... Qxd4 {[%clk 0:00:02.6]} 37. Rxd4 {[%clk
0:00:55.7]} 37... Rc1+ {[%clk 0:00:02.3]} 38. Kh2 {[%clk 0:00:56]} 38... Ra1
{[%clk 0:00:01.8]} 39. Rxb4 {[%clk 0:00:54.3]} 39... Kf8 {[%clk 0:00:02.4]} 40.
a4 {[%clk 0:00:40.2]} 40... Rc2 {[%clk 0:00:02.5]} 41. Rb7 {[%clk 0:00:36.7]}
41... Rcc1 {[%clk 0:00:02.5]} 42. Rf3 {[%clk 0:00:29.8]} 42... Ke7 {[%clk
0:00:03.4]} 43. Kg3 {[%clk 0:00:28.3]} 43... Rc2 {[%clk 0:00:03]} 44. h4 {[%clk
0:00:28.3]} 44... Rb1 {[%clk 0:00:02.7]} 45. Nh3 {[%clk 0:00:28.3]} 45... Rcb2
{[%clk 0:00:02.5]} 46. Nf4 {[%clk 0:00:28.5]} 46... Kd8 {[%clk 0:00:02.9]} 47.
Nxg6 {[%clk 0:00:28.4]} 47... d4 {[%clk 0:00:02.2]} 48. Rb4 {[%clk 0:00:26.7]}
48... d3 {[%clk 0:00:02]} 49. Rxd3 {[%clk 0:00:26.6]} 49... Kc7 {[%clk
0:00:02.4]} 50. Rc4+ {[%clk 0:00:26.8]} 50... Bc6 {[%clk 0:00:01.1]} 51. Rdc3
{[%clk 0:00:24.1]} 51... Rxb3 {[%clk 0:00:01.6]} 52. Rxc6+ {[%clk 0:00:24.5]}
52... Kb7 {[%clk 0:00:02.1]} 53. Nf4 {[%clk 0:00:20.1]} 53... Rxc3+ {[%clk
0:00:01.1]} 54. Rxc3 {[%clk 0:00:21]} 54... Rb3 {[%clk 0:00:00.9]} 55. Rxb3+
{[%clk 0:00:21.1]} 1-0

[Event "Late-Titled-Tuesday-Blitz-May-14-2024"]
[Site "Chess.com"]
[Date "2024.05.14"]
[Round "6"]
[White "Fjal"]
[Black "GiorgianBarbosa"]
[Result "0-1"]
[WhiteElo "2350"]
[BlackElo "2523"]
[TimeControl "180+1"]
[EndTime "15:06:53 PDT"]
[Termination "GiorgianBarbosa won by resignation"]

1. Nf3 {[%clk 0:02:45.6]} 1... Nf6 {[%clk 0:02:59.9]} 2. g3 {[%clk 0:02:44.7]}
2... g6 {[%clk 0:03:00.8]} 3. Bg2 {[%clk 0:02:45.2]} 3... Bg7 {[%clk 0:03:01.7]}
4. O-O {[%clk 0:02:45.6]} 4... O-O {[%clk 0:03:02.6]} 5. d3 {[%clk 0:02:46.2]}
5... d5 {[%clk 0:03:02.7]} 6. c4 {[%clk 0:02:36.8]} 6... c5 {[%clk 0:03:02.6]}
7. Nc3 {[%clk 0:02:33]} 7... Nc6 {[%clk 0:03:01.9]} 8. Nxd5 {[%clk 0:02:31.3]}
8... Nxd5 {[%clk 0:03:02.8]} 9. cxd5 {[%clk 0:02:32.2]} 9... Qxd5 {[%clk
0:03:03.7]} 10. a3 {[%clk 0:02:32.9]} 10... b6 {[%clk 0:03:01.6]} 11. Qa4 {[%clk
0:02:32.2]} 11... Bb7 {[%clk 0:03:01.5]} 12. Rb1 {[%clk 0:02:24.4]} 12... Nd4
{[%clk 0:03:00.7]} 13. Re1 {[%clk 0:02:18]} 13... Bc6 {[%clk 0:02:55.1]} 14. Qc4
{[%clk 0:01:51.5]} 14... Qxc4 {[%clk 0:02:43.3]} 15. dxc4 {[%clk 0:01:52.4]}
15... Be4 {[%clk 0:02:43.9]} 16. Nd2 {[%clk 0:01:41.8]} 16... Bxb1 {[%clk
0:02:18.6]} 17. Bxa8 {[%clk 0:01:40.5]} 17... Rxa8 {[%clk 0:02:19.5]} 18. Nxb1
{[%clk 0:01:39.9]} 18... Nb3 {[%clk 0:02:20.4]} 19. Bg5 {[%clk 0:01:29.2]} 19...
e6 {[%clk 0:02:11.4]} 20. Nc3 {[%clk 0:01:28.9]} 20... Bxc3 {[%clk 0:02:11.5]}
21. bxc3 {[%clk 0:01:29.8]} 21... Na5 {[%clk 0:02:11.6]} 22. Bf6 {[%clk
0:01:14.3]} 22... Nxc4 {[%clk 0:02:12.5]} 23. a4 {[%clk 0:01:11]} 23... Nd6
{[%clk 0:02:03.1]} 24. f3 {[%clk 0:01:09.1]} 24... Ne8 {[%clk 0:01:52.9]} 25.
Be7 {[%clk 0:01:09.1]} 25... f6 {[%clk 0:01:51.9]} 26. Rd1 {[%clk 0:01:09.1]}
26... a6 {[%clk 0:01:42.3]} 27. Rd7 {[%clk 0:01:08.6]} 27... Rc8 {[%clk
0:01:31.9]} 28. Kf2 {[%clk 0:00:52.3]} 28... Rc7 {[%clk 0:01:27.1]} 29. Rxc7
{[%clk 0:00:50.7]} 29... Nxc7 {[%clk 0:01:28]} 30. Bxf6 {[%clk 0:00:51.2]} 30...
Kf7 {[%clk 0:01:15.3]} 31. Bd8 {[%clk 0:00:50.6]} 31... Na8 {[%clk 0:01:14.3]}
32. e4 {[%clk 0:00:47.6]} 32... Ke8 {[%clk 0:01:12.7]} 33. Bf6 {[%clk 0:00:44]}
33... Nc7 {[%clk 0:01:09.8]} 34. Ke3 {[%clk 0:00:40.1]} 34... b5 {[%clk
0:01:07.4]} 35. Kf4 {[%clk 0:00:30.3]} 35... bxa4 {[%clk 0:01:00.1]} 36. c4
{[%clk 0:00:29.8]} 36... Na8 {[%clk 0:00:54]} 37. Kg5 {[%clk 0:00:26.2]} 37...
Nb6 {[%clk 0:00:46.8]} 38. Kh6 {[%clk 0:00:26.4]} 38... Nxc4 {[%clk 0:00:45]}
39. Kxh7 {[%clk 0:00:26.9]} 39... Kf7 {[%clk 0:00:44.5]} 40. Bc3 {[%clk
0:00:24.1]} 40... a3 {[%clk 0:00:44.7]} 41. h4 {[%clk 0:00:21.3]} 41... a2
{[%clk 0:00:44.2]} 42. g4 {[%clk 0:00:20.6]} 42... Nd2 {[%clk 0:00:42.4]} 43. h5
{[%clk 0:00:18.2]} 43... g5 {[%clk 0:00:36]} 44. f4 {[%clk 0:00:14.2]} 44...
Nxe4 {[%clk 0:00:34.4]} 45. fxg5 {[%clk 0:00:14]} 45... Nxc3 {[%clk 0:00:27.3]}
46. g6+ {[%clk 0:00:14]} 46... Ke7 {[%clk 0:00:26.4]} 47. g7 {[%clk 0:00:14.7]}
47... Ne4 {[%clk 0:00:26]} 48. g5 {[%clk 0:00:11]} 48... Nxg5+ {[%clk
0:00:25.3]} 49. Kg6 {[%clk 0:00:10.8]} 49... a1=Q {[%clk 0:00:20.4]} 50. Kxg5
{[%clk 0:00:11]} 50... Qg1+ {[%clk 0:00:19.9]} 51. Kh6 {[%clk 0:00:10.2]} 51...
Kf7 {[%clk 0:00:18.8]} 0-1

[Event "Late-Titled-Tuesday-Blitz-May-14-2024"]
[Site "Chess.com"]
[Date "2024.05.14"]
[Round "6"]
[White "Polish_fighter3000"]
[Black "AlexeiShirov"]
[Result "1-0"]
[WhiteElo "3110"]
[BlackElo "2919"]
[TimeControl "180+1"]
[EndTime "15:06:55 PDT"]
[Termination "Polish_fighter3000 won by resignation"]

1. Nf3 {[%clk 0:02:59.2]} 1... d5 {[%clk 0:02:58.9]} 2. c4 {[%clk 0:02:59.4]}
2... e6 {[%clk 0:02:57.9]} 3. g3 {[%clk 0:02:57]} 3... Nf6 {[%clk 0:02:57]} 4.
Bg2 {[%clk 0:02:57.2]} 4... Be7 {[%clk 0:02:55.9]} 5. O-O {[%clk 0:02:56]} 5...
O-O {[%clk 0:02:55.2]} 6. d4 {[%clk 0:02:55]} 6... dxc4 {[%clk 0:02:54.3]} 7.
Qc2 {[%clk 0:02:52.4]} 7... a6 {[%clk 0:02:53]} 8. a4 {[%clk 0:02:50.5]} 8...
Bd7 {[%clk 0:02:50.4]} 9. Qxc4 {[%clk 0:02:48.8]} 9... Bc6 {[%clk 0:02:49.9]}
10. Bg5 {[%clk 0:02:48.5]} 10... Nbd7 {[%clk 0:02:48.5]} 11. e3 {[%clk
0:02:27.8]} 11... h6 {[%clk 0:02:42.7]} 12. Bxf6 {[%clk 0:02:25.3]} 12... Nxf6
{[%clk 0:02:41.8]} 13. Nc3 {[%clk 0:02:15.6]} 13... a5 {[%clk 0:02:33.1]} 14.
Rfd1 {[%clk 0:02:08.4]} 14... Bb4 {[%clk 0:02:30.5]} 15. h4 {[%clk 0:01:47]}
15... Bxf3 {[%clk 0:02:20.7]} 16. Bxf3 {[%clk 0:01:47.9]} 16... c6 {[%clk
0:02:20.3]} 17. h5 {[%clk 0:01:48.5]} 17... Nd5 {[%clk 0:02:15]} 18. Kg2 {[%clk
0:01:47.1]} 18... Qe7 {[%clk 0:02:12.2]} 19. Rac1 {[%clk 0:01:39.6]} 19... Rfd8
{[%clk 0:02:10.4]} 20. Qe2 {[%clk 0:01:33.9]} 20... Nf6 {[%clk 0:02:05]} 21. Ne4
{[%clk 0:01:21.5]} 21... Rac8 {[%clk 0:02:01.1]} 22. Nxf6+ {[%clk 0:01:16.2]}
22... Qxf6 {[%clk 0:02:00.4]} 23. Be4 {[%clk 0:01:16.8]} 23... Rc7 {[%clk
0:01:58]} 24. Rd3 {[%clk 0:00:48.3]} 24... Rdc8 {[%clk 0:01:51]} 25. b3 {[%clk
0:00:46.2]} 25... b5 {[%clk 0:01:43.7]} 26. Rdd1 {[%clk 0:00:43.5]} 26... bxa4
{[%clk 0:01:42.3]} 27. bxa4 {[%clk 0:00:44.4]} 27... c5 {[%clk 0:01:34.4]} 28.
d5 {[%clk 0:00:44.4]} 28... c4 {[%clk 0:01:32.5]} 29. dxe6 {[%clk 0:00:29.1]}
29... fxe6 {[%clk 0:01:31.3]} 30. Rd4 {[%clk 0:00:23.9]} 30... c3 {[%clk
0:01:29.6]} 31. Bc2 {[%clk 0:00:24.2]} 31... Rd8 {[%clk 0:01:23]} 32. Rcd1
{[%clk 0:00:21.1]} 32... Rcc8 {[%clk 0:00:54]} 33. Qd3 {[%clk 0:00:19]} 33...
Rxd4 {[%clk 0:00:52.3]} 34. Qh7+ {[%clk 0:00:19.6]} 34... Kf7 {[%clk 0:00:49.7]}
35. Rxd4 {[%clk 0:00:20.5]} 35... Ke7 {[%clk 0:00:46.2]} 36. Rg4 {[%clk
0:00:14]} 36... Kd6 {[%clk 0:00:15.9]} 37. Rxg7 {[%clk 0:00:12.1]} 37... Qe5
{[%clk 0:00:14.1]} 38. Rd7+ {[%clk 0:00:09.7]} 38... Kc5 {[%clk 0:00:13.5]} 39.
Qxh6 {[%clk 0:00:06.2]} 39... Rc7 {[%clk 0:00:13]} 40. Rxc7+ {[%clk 0:00:05.7]}
40... Qxc7 {[%clk 0:00:12.2]} 41. Qg5+ {[%clk 0:00:06.2]} 41... Kb6 {[%clk
0:00:11.3]} 42. h6 {[%clk 0:00:05]} 42... Qc6+ {[%clk 0:00:10.8]} 43. Kg1 {[%clk
0:00:05.6]} 43... Qd6 {[%clk 0:00:09.9]} 44. h7 {[%clk 0:00:05.1]} 44... Qd2
{[%clk 0:00:09.2]} 45. Qg6 {[%clk 0:00:05]} 45... Qc1+ {[%clk 0:00:07.4]} 46.
Kg2 {[%clk 0:00:05.3]} 1-0

[Event "Late-Titled-Tuesday-Blitz-May-14-2024"]
[Site "Chess.com"]
[Date "2024.05.14"]
[Round "6"]
[White "Artem_Koval"]
[Black "Boninknights"]
[Result "1-0"]
[WhiteElo "2579"]
[BlackElo "2380"]
[TimeControl "180+1"]
[EndTime "15:06:57 PDT"]
[Termination "Artem_Koval won on time"]

1. e4 {[%clk 0:03:00.9]} 1... c5 {[%clk 0:02:58.7]} 2. d4 {[%clk 0:02:59.8]}
2... cxd4 {[%clk 0:02:57]} 3. c3 {[%clk 0:03:00.2]} 3... Qa5 {[%clk 0:02:53.7]}
4. Nf3 {[%clk 0:02:58.5]} 4... Nc6 {[%clk 0:02:51.9]} 5. Bc4 {[%clk 0:02:52.2]}
5... Nf6 {[%clk 0:02:49.3]} 6. O-O {[%clk 0:02:51.2]} 6... Nxe4 {[%clk
0:02:39.8]} 7. Re1 {[%clk 0:02:37.5]} 7... d5 {[%clk 0:02:37.7]} 8. Bd3 {[%clk
0:02:37.7]} 8... f5 {[%clk 0:02:27.4]} 9. cxd4 {[%clk 0:02:24.8]} 9... g6 {[%clk
0:02:17.4]} 10. Nc3 {[%clk 0:02:13.5]} 10... Bg7 {[%clk 0:02:12.1]} 11. Qb3
{[%clk 0:01:52.2]} 11... e6 {[%clk 0:02:05.2]} 12. Be3 {[%clk 0:01:47.8]} 12...
O-O {[%clk 0:02:02.7]} 13. Rac1 {[%clk 0:01:47.3]} 13... Qb4 {[%clk 0:01:51.1]}
14. Qc2 {[%clk 0:01:27.7]} 14... Qe7 {[%clk 0:01:49.2]} 15. a3 {[%clk
0:01:09.3]} 15... Bd7 {[%clk 0:01:44.6]} 16. Na4 {[%clk 0:01:05]} 16... Rac8
{[%clk 0:01:41.2]} 17. Nc5 {[%clk 0:01:02.6]} 17... Nxd4 {[%clk 0:01:30.1]} 18.
Bxd4 {[%clk 0:00:50.2]} 18... Bxd4 {[%clk 0:01:23.7]} 19. Nxd4 {[%clk
0:00:48.8]} 19... Rxc5 {[%clk 0:01:20.6]} 20. Qb3 {[%clk 0:00:39.5]} 20... b6
{[%clk 0:01:05.7]} 21. f3 {[%clk 0:00:39.7]} 21... Qf6 {[%clk 0:01:01]} 22. Ne2
{[%clk 0:00:33.6]} 22... Nd6 {[%clk 0:00:56.8]} 23. Rxc5 {[%clk 0:00:13]} 23...
bxc5 {[%clk 0:00:55.3]} 24. Bb1 {[%clk 0:00:13.7]} 24... Qf7 {[%clk 0:00:49.3]}
25. Qe3 {[%clk 0:00:10.6]} 25... Rc8 {[%clk 0:00:42.1]} 26. Nf4 {[%clk
0:00:09.9]} 26... Nc4 {[%clk 0:00:38.4]} 27. Qf2 {[%clk 0:00:07.1]} 27... e5
{[%clk 0:00:37.6]} 28. Nd3 {[%clk 0:00:05.7]} 28... e4 {[%clk 0:00:33.2]} 29.
Nxc5 {[%clk 0:00:05.8]} 29... e3 {[%clk 0:00:32.5]} 30. Rxe3 {[%clk 0:00:03]}
30... Rxc5 {[%clk 0:00:30.4]} 31. Rc3 {[%clk 0:00:02.2]} 31... Rc8 {[%clk
0:00:27.2]} 32. Qxa7 {[%clk 0:00:02.4]} 32... Be6 {[%clk 0:00:22.1]} 33. Qd4
{[%clk 0:00:01.9]} 33... Qg7 {[%clk 0:00:19.8]} 34. Qxg7+ {[%clk 0:00:02.1]}
34... Kxg7 {[%clk 0:00:19.3]} 35. Ba2 {[%clk 0:00:01.7]} 35... Nb6 {[%clk
0:00:17.9]} 36. Rd3 {[%clk 0:00:01.4]} 36... Rc1+ {[%clk 0:00:15.1]} 37. Kf2
{[%clk 0:00:01.8]} 37... Rc2+ {[%clk 0:00:14.7]} 38. Kg3 {[%clk 0:00:02.7]}
38... Rxb2 {[%clk 0:00:14.4]} 39. Bb3 {[%clk 0:00:03.6]} 39... g5 {[%clk
0:00:12.9]} 40. f4 {[%clk 0:00:03.8]} 40... g4 {[%clk 0:00:10.8]} 41. a4 {[%clk
0:00:04]} 41... Nc4 {[%clk 0:00:09.1]} 42. a5 {[%clk 0:00:03.4]} 42... Nxa5
{[%clk 0:00:08]} 43. Bxd5 {[%clk 0:00:03.9]} 43... Bxd5 {[%clk 0:00:07.6]} 44.
Rxd5 {[%clk 0:00:04.8]} 44... Nc4 {[%clk 0:00:07]} 45. Rxf5 {[%clk 0:00:04.2]}
1-0

[Event "Late-Titled-Tuesday-Blitz-May-14-2024"]
[Site "Chess.com"]
[Date "2024.05.14"]
[Round "6"]
[White "nindjaxx8"]
[Black "platy3"]
[Result "1-0"]
[WhiteElo "2666"]
[BlackElo "2878"]
[TimeControl "180+1"]
[EndTime "15:06:58 PDT"]
[Termination "nindjaxx8 won by resignation"]

1. d4 {[%clk 0:03:00.9]} 1... Nf6 {[%clk 0:02:57.8]} 2. c4 {[%clk 0:03:01.2]}
2... e6 {[%clk 0:02:56.3]} 3. Nc3 {[%clk 0:03:01.1]} 3... Bb4 {[%clk 0:02:55]}
4. Qc2 {[%clk 0:03:01.3]} 4... d5 {[%clk 0:02:54.7]} 5. cxd5 {[%clk 0:02:59.7]}
5... Qxd5 {[%clk 0:02:53.5]} 6. Nf3 {[%clk 0:02:59.1]} 6... Qf5 {[%clk
0:02:49.5]} 7. Qxf5 {[%clk 0:02:58.9]} 7... exf5 {[%clk 0:02:49.2]} 8. Bd2
{[%clk 0:02:57.7]} 8... c6 {[%clk 0:02:46.8]} 9. e3 {[%clk 0:02:57.7]} 9... Be6
{[%clk 0:02:44.8]} 10. a3 {[%clk 0:02:52]} 10... Bxc3 {[%clk 0:02:44.2]} 11.
bxc3 {[%clk 0:02:50.8]} 11... Nbd7 {[%clk 0:02:41.7]} 12. Bd3 {[%clk 0:02:50.1]}
12... Ne4 {[%clk 0:02:37.7]} 13. Rb1 {[%clk 0:02:41.2]} 13... b5 {[%clk
0:02:36.9]} 14. Ng1 {[%clk 0:02:22.1]} 14... Nb6 {[%clk 0:02:35]} 15. f3 {[%clk
0:02:21.4]} 15... Nd6 {[%clk 0:02:32.1]} 16. Ne2 {[%clk 0:02:19.8]} 16... Bc4
{[%clk 0:02:31.8]} 17. Bc2 {[%clk 0:02:16.7]} 17... O-O {[%clk 0:01:55.9]} 18.
Ng3 {[%clk 0:02:03]} 18... g6 {[%clk 0:01:42.7]} 19. h4 {[%clk 0:02:02.3]} 19...
Rfe8 {[%clk 0:01:42.2]} 20. Kf2 {[%clk 0:02:02.1]} 20... Bd5 {[%clk 0:01:39.8]}
21. h5 {[%clk 0:01:58.8]} 21... Ndc4 {[%clk 0:01:35.4]} 22. Bc1 {[%clk
0:01:57.9]} 22... f4 {[%clk 0:01:31.7]} 23. exf4 {[%clk 0:01:52.1]} 23... f5
{[%clk 0:01:32.3]} 24. hxg6 {[%clk 0:01:45.5]} 24... hxg6 {[%clk 0:01:31.2]} 25.
Re1 {[%clk 0:01:19.7]} 25... Rxe1 {[%clk 0:01:30.4]} 26. Kxe1 {[%clk 0:01:20.6]}
26... Re8+ {[%clk 0:01:29.8]} 27. Kf2 {[%clk 0:01:21.2]} 27... a5 {[%clk
0:01:29.9]} 28. Nf1 {[%clk 0:01:02.2]} 28... a4 {[%clk 0:01:28.3]} 29. g4 {[%clk
0:00:52.3]} 29... Be6 {[%clk 0:00:52.4]} 30. gxf5 {[%clk 0:00:34.2]} 30... Bxf5
{[%clk 0:00:49.8]} 31. Bxf5 {[%clk 0:00:33.5]} 31... gxf5 {[%clk 0:00:50.7]} 32.
Ne3 {[%clk 0:00:31]} 32... Rxe3 {[%clk 0:00:10.7]} 33. Bxe3 {[%clk 0:00:31.9]}
33... Nxa3 {[%clk 0:00:11.1]} 34. Rg1+ {[%clk 0:00:22.7]} 34... Kf7 {[%clk
0:00:11.6]} 35. Rg5 {[%clk 0:00:17]} 35... Nac4 {[%clk 0:00:12.1]} 36. Rxf5+
{[%clk 0:00:16.8]} 36... Ke6 {[%clk 0:00:12.6]} 37. Rh5 {[%clk 0:00:14]} 37...
a3 {[%clk 0:00:12.5]} 38. f5+ {[%clk 0:00:10.8]} 38... Kf7 {[%clk 0:00:12.9]}
39. Rh1 {[%clk 0:00:04.4]} 39... Nd5 {[%clk 0:00:12.8]} 40. Ra1 {[%clk
0:00:04.8]} 40... Nxc3 {[%clk 0:00:12.7]} 41. Bc1 {[%clk 0:00:05]} 41... a2
{[%clk 0:00:11.7]} 42. Ke1 {[%clk 0:00:03.5]} 42... b4 {[%clk 0:00:11.7]} 43.
Bd2 {[%clk 0:00:03.5]} 43... Na3 {[%clk 0:00:01.6]} 44. Bxc3 {[%clk 0:00:03.2]}
44... b3 {[%clk 0:00:01.9]} 45. Kd2 {[%clk 0:00:02.3]} 45... Kf6 {[%clk
0:00:02.1]} 46. Bb2 {[%clk 0:00:02.6]} 46... Nb5 {[%clk 0:00:02.2]} 47. Rc1
{[%clk 0:00:02.4]} 47... Kxf5 {[%clk 0:00:02.2]} 48. Rxc6 {[%clk 0:00:02.4]}
48... Na3 {[%clk 0:00:02.7]} 49. Ba1 {[%clk 0:00:02.2]} 49... Nc2 {[%clk
0:00:02.9]} 50. Rxc2 {[%clk 0:00:02.9]} 50... bxc2 {[%clk 0:00:03.4]} 51. Kxc2
{[%clk 0:00:03.8]} 1-0